bitfinex-derivatives/quotes_ETHF0:USTF0_20260226
["timestamp","ask_amount","ask_price","bid_price","bid_amount"]
[1772080649793,7.51512042,2075.3,2074.9,6.23843159]
[1772080651095,9.06,2075.4,2075.1,6.22119233]
[1772080651293,9.071,2075.8,2075.3,6.22119233]
[1772080651593,9.079,2076.1,2075.5,6.21994198]
[1772080651794,16.59412042,2076.1,2075.6,6.73186508]
[1772080652102,16.59412042,2076.1,2075.2,3.96068123]
[1772080652103,9.081,2076.4,2075.8,6.20370431]
[1772080652295,7.51512042,2076.6,2076.0,6.19759074]
[1772080652592,9.088,2076.7,2076.2,6.23479436]
[1772080652796,9.088,2076.7,2076.4,6.26172064]
[1772080653194,16.5895125,2077.2,2076.4,6.26172064]
[1772080653393,7.51711916,2077.4,2076.6,6.2477439]
[1772080653595,7.51711916,2077.4,2076.8,6.26284228]
[1772080653795,7.51711916,2077.2,2076.8,6.26284228]
[1772080654401,0.0044662,2077.2,2076.8,6.26284228]
[1772080654698,7.51711916,2078.2,2077.2,6.02464538]
[1772080654895,0.30919674,2078.8,2077.4,6.08593909]
[1772080654896,7.51711916,2078.6,2077.4,6.08593909]
[1772080655091,7.51711916,2078.6,2077.6,6.08593909]
[1772080655396,0.30919674,2078.8,2077.7,8.36746092]
[1772080655600,7.51711916,2079.0,2077.9,0.77773693]
[1772080655901,0.00186597,2078.8,2078.1,0.77773693]
[1772080656100,7.88179305,2078.8,2078.1,0.77773693]
[1772080656302,0.00186597,2078.8,2078.3,0.77773693]
[1772080656506,7.76080115,2079.1,2078.3,0.77773693]
[1772080658499,40.8,2079.5,2078.1,1.39819561]
[1772080658500,7.8389472,2079.3,2078.1,1.39819561]
[1772080658901,5.91176,2080.6,2078.1,1.39819561]
[1772080658902,7.8389472,2080.7,2078.8,1.19797715]
[1772080659100,7.8389472,2080.7,2079.0,1.19797715]
[1772080659399,7.8389472,2080.5,2079.1,1.19797715]
[1772080659604,6.05136474,2083.1,2081.1,5.91015]
[1772080659801,7.881855,2082.9,2082.2,5.9068]
[1772080660098,7.23187175,2082.9,2081.3,1.25914789]
[1772080660306,40.8,2082.8,2081.3,1.25914789]
[1772080660499,7.86473528,2082.4,2081.3,1.25914789]
[1772080660699,5.90618,2082.5,2081.0,1.11906467]
[1772080660700,7.86473528,2081.8,2081.0,1.11906467]
[1772080661002,7.86473528,2081.8,2079.0,5.91594]
[1772080661003,8.3131488,2081.6,2080.5,0.22223763]
[1772080661304,8.3131488,2080.6,2079.1,0.22223763]
[1772080661498,8.31354986,2080.4,2079.1,0.22223763]
[1772080661698,8.31354986,2080.0,2078.4,0.7762201]
[1772080661902,8.31354986,2079.8,2079.1,0.00380397]
[1772080662098,8.31354986,2079.8,2078.5,0.7762201]
[1772080662300,8.31354986,2079.5,2078.2,0.7762201]
[1772080662604,8.65229565,2079.3,2078.2,0.7762201]
[1772080663101,5.27533233,2079.2,2078.2,0.00537819]
[1772080663307,8.65229565,2079.1,2078.2,0.00537819]
[1772080663598,8.65229565,2079.1,2078.2,0.13966222]
[1772080664998,8.65229565,2079.1,2078.2,0.00537819]
[1772080666506,8.65229565,2079.1,2077.8,0.25844289]
[1772080666705,8.65229565,2079.1,2077.2,0.2436168]
[1772080666905,8.57492578,2078.9,2077.2,0.2436168]
[1772080667117,8.57492578,2078.7,2077.2,0.2436168]
[1772080667400,8.57492578,2078.5,2077.2,0.24779075]
[1772080667801,17.80992578,2078.5,2077.2,0.24779075]
[1772080668398,8.57492578,2078.5,2077.2,0.24779075]
[1772080669307,8.5549918,2078.7,2077.2,0.24779075]
[1772080669704,8.5549918,2078.7,2077.8,0.2481763]
[1772080669903,0.00499491,2078.7,2077.8,0.2481763]
[1772080670104,8.55524009,2078.7,2077.5,0.2481763]
[1772080670310,8.55024518,2078.6,2077.5,0.2481763]
[1772080670604,8.5096215,2078.5,2077.5,0.2481763]
[1772080670803,8.5096215,2078.5,2077.2,0.3183235]
[1772080673308,8.5096215,2078.5,2077.2,0.00417395]
[1772080673510,8.54131146,2078.3,2077.2,0.00417395]
[1772080673705,8.54131146,2078.1,2077.2,0.00417395]
[1772080675207,8.54131146,2078.1,2076.6,0.22002076]
[1772080675608,8.54131146,2078.1,2076.4,0.18443158]
[1772080675913,2.63451146,2078.1,2076.4,0.18443158]
[1772080676411,8.04235579,2077.9,2076.4,0.18844575]
[1772080677403,8.04235579,2077.9,2076.4,0.00401417]
[1772080677608,8.04235579,2077.7,2076.4,0.00401417]
[1772080677803,8.04235579,2077.5,2076.4,0.00401417]
[1772080678908,5.5732398,2077.4,2076.4,6.55977984]
[1772080679109,8.04235579,2077.5,2076.4,6.55977984]
[1772080680307,8.04235579,2077.5,2076.4,6.54625423]
[1772080680810,8.04235579,2077.1,2075.9,6.58782033]
[1772080681010,8.04235579,2076.9,2075.3,6.58782033]
[1772080681315,8.04235579,2077.2,2075.8,6.58782033]
[1772080681513,8.04235579,2077.2,2076.0,6.58726768]
[1772080681915,8.04830123,2077.2,2076.0,6.59340996]
[1772080682710,8.04235579,2077.1,2076.0,6.59340996]
[1772080683110,8.04235579,2077.1,2076.2,6.58515422]
[1772080683312,0.00594544,2077.2,2076.2,6.58515422]
[1772080683711,0.00594544,2077.2,2076.0,0.00614228]
[1772080683712,0.00594544,2077.2,2076.4,6.57113156]
[1772080684311,0.00594544,2077.2,2076.6,6.57113156]
[1772080684520,8.04235579,2077.7,2076.6,6.57113156]
[1772080685617,8.04582631,2077.7,2076.6,6.57113156]
[1772080686417,8.04582631,2077.7,2076.1,6.30177464]
[1772080686617,8.04582631,2077.7,2076.3,6.28801458]
[1772080686817,8.04235579,2077.5,2076.3,6.28801458]
[1772080687211,8.04235579,2077.5,2076.0,0.00614228]
[1772080687212,5.92086,2077.4,2076.0,0.00614228]
[1772080687416,8.04235579,2077.1,2076.0,0.00614228]
[1772080690516,8.04235579,2077.1,2076.0,6.28879207]
[1772080691020,9.312,2077.3,2076.2,6.28264979]
[1772080691220,8.04235579,2077.4,2076.4,6.28264979]
[1772080691418,8.04235579,2077.4,2076.6,6.28264979]
[1772080691721,8.04235579,2077.4,2076.7,6.81117479]
[1772080691921,8.04235579,2077.4,2076.7,6.26786208]
[1772080692222,8.04235579,2077.4,2076.8,0.54354545]
[1772080692419,17.40135579,2077.6,2076.7,6.26786208]
[1772080692626,8.04582631,2077.7,2076.8,6.80408883]
[1772080692819,8.04582631,2077.7,2076.9,0.54355173]
[1772080693020,8.04582631,2077.7,2076.8,6.26046248]
[1772080693318,8.04582631,2077.7,2076.9,0.54353237]
[1772080693622,8.04582631,2077.7,2076.3,3.83123976]
[1772080693817,8.04582631,2077.7,2076.4,6.7893889]
[1772080694019,8.04582631,2077.7,2076.1,0.24082]
[1772080694020,8.04235579,2077.4,2076.1,6.24555111]
[1772080694215,8.04235579,2077.2,2076.2,0.54414782]
[1772080694420,8.04235579,2077.2,2076.3,0.54414782]
[1772080694621,8.04235579,2077.2,2076.4,0.54449759]
[1772080694816,8.04235579,2077.2,2076.1,6.24555111]
[1772080695123,8.04235579,2077.2,2076.2,0.54452834]
[1772080695324,8.04235579,2077.2,2076.3,0.54452834]
[1772080695527,8.04235579,2077.2,2076.0,0.00614228]
[1772080695727,8.04235579,2077.0,2076.0,0.00614228]
[1772080697928,8.04235579,2077.0,2076.0,4.64705131]
[1772080698731,8.04235579,2077.2,2076.1,4.64098323]
[1772080699128,8.04235579,2077.2,2076.1,8.47222299]
[1772080699428,8.04235579,2077.2,2076.2,4.64098323]
[1772080699733,8.04235579,2077.2,2076.4,4.62761068]
[1772080700628,8.04235579,2077.2,2076.1,3.83123976]
[1772080700929,8.04235579,2077.2,2076.0,8.38136824]
[1772080702134,8.04235579,2077.2,2076.1,3.83123976]
[1772080702930,9.366,2077.5,2075.5,7.43347999]
[1772080702931,8.04235579,2076.8,2075.5,7.43347999]
[1772080703131,8.04235579,2076.6,2075.3,4.48384327]
[1772080703633,8.04235579,2076.5,2075.3,4.48384327]
[1772080704025,8.04235579,2076.5,2075.3,4.48919844]
[1772080705732,8.04235579,2076.7,2075.5,8.33499344]
[1772080707546,8.04235579,2076.7,2075.6,0.54298254]
[1772080707843,8.04235579,2076.7,2075.7,8.72064882]
[1772080708049,8.04235579,2076.7,2075.8,0.54298254]
[1772080708342,8.04235579,2076.7,2075.9,0.54298254]
[1772080708546,8.04235579,2076.7,2076.0,8.72064882]
[1772080708746,8.04235579,2076.7,2076.1,0.54298254]
[1772080709046,8.04235579,2076.7,2076.2,0.54298254]
[1772080709246,8.04235579,2076.7,2076.3,0.54298254]
[1772080709445,8.04235579,2076.7,2076.0,8.17766628]
[1772080709746,8.04235579,2076.7,2076.1,0.54308107]
[1772080709946,8.04235579,2076.7,2076.2,0.54308107]
[1772080710137,8.36586041,2076.9,2076.3,0.54308107]
[1772080710337,8.36586041,2076.9,2076.4,0.54308107]
[1772080710543,8.36586041,2076.9,2076.5,0.54308107]
[1772080710742,8.36586041,2076.9,2076.0,8.17766628]
[1772080710943,8.36586041,2076.9,2076.1,0.54303707]
[1772080711144,8.36586041,2076.9,2076.2,0.54303707]
[1772080711449,8.36586041,2076.9,2075.8,7.247]
[1772080712045,8.36586041,2076.9,2075.4,7.242]
[1772080712552,8.36586041,2076.7,2075.3,8.18302145]
[1772080712853,8.36586041,2076.5,2075.3,8.18302145]
[1772080720357,8.5433587,2076.3,2075.3,0.00535517]
[1772080723357,8.5433587,2076.3,2075.4,0.53922485]
[1772080723552,8.5433587,2076.1,2075.5,0.53922485]
[1772080723753,8.54677564,2076.1,2075.6,0.53922485]
[1772080724057,8.54677564,2076.1,2075.4,8.95209322]
[1772080724258,8.54677564,2076.1,2075.5,0.53893287]
[1772080724555,8.54677564,2076.1,2075.6,0.53893287]
[1772080724754,8.54677564,2076.1,2075.4,8.95209322]
[1772080724955,8.54677564,2076.1,2075.5,0.53891482]
[1772080725252,8.54677564,2076.1,2075.6,9.49100804]
[1772080725457,0.00341694,2076.1,2075.7,9.49100804]
[1772080725652,8.54677564,2076.1,2075.8,0.53891482]
[1772080725852,8.54677564,2076.1,2075.4,8.95209322]
[1772080726052,8.54677564,2076.1,2075.5,9.49086201]
[1772080726256,8.54677564,2076.1,2075.6,0.53876879]
[1772080726452,8.54677564,2076.1,2075.7,0.53876879]
[1772080726653,8.54677564,2076.1,2075.8,0.53876879]
[1772080726853,8.54677564,2076.1,2075.5,8.95209322]
[1772080727155,8.54677564,2076.1,2075.6,0.53874389]
[1772080727354,8.54677564,2076.1,2075.7,0.53874389]
[1772080727650,8.54677564,2076.1,2075.3,8.95744839]
[1772080727855,8.54677564,2076.1,2075.4,0.53889633]
[1772080728057,8.54677564,2076.1,2075.5,0.53889633]
[1772080728257,8.54677564,2076.1,2075.6,0.53889633]
[1772080728452,8.54677564,2076.1,2075.7,0.53889633]
[1772080728659,8.54677564,2076.1,2075.4,8.95209322]
[1772080728860,8.54677564,2076.1,2075.5,0.53888246]
[1772080729056,8.54677564,2076.1,2075.6,0.53888246]
[1772080729258,8.54677564,2076.1,2075.7,0.53888246]
[1772080729458,8.54677564,2076.1,2075.8,0.53888246]
[1772080729751,8.54677564,2076.1,2075.4,8.95209322]
[1772080730058,8.54677564,2076.1,2075.5,0.53904302]
[1772080730262,8.54677564,2076.1,2075.6,9.49113624]
[1772080730557,8.54677564,2076.1,2075.7,0.53904302]
[1772080730761,8.54677564,2076.1,2075.8,0.53904302]
[1772080730968,8.54677564,2076.1,2075.9,0.53904302]
[1772080731164,8.54677564,2076.1,2075.5,8.95209322]
[1772080731466,8.54677564,2076.1,2075.6,9.49155417]
[1772080731660,0.00341694,2076.1,2075.8,8.95209322]
[1772080731961,8.5433587,2076.3,2075.9,0.53946095]
[1772080732163,8.5433587,2076.3,2075.4,8.95209322]
[1772080732765,8.54717472,2076.3,2075.4,8.95209322]
[1772080734970,8.54717472,2076.3,2075.3,8.95744839]
[1772080738570,7.49878978,2077.2,2075.5,5.93142906]
[1772080738571,8.76526206,2076.8,2075.5,5.93142906]
[1772080738770,8.76526206,2076.8,2075.7,8.69181015]
[1772080739074,8.76526206,2076.8,2075.5,15.87081015]
[1772080739475,8.76526206,2076.8,2075.6,8.69181015]
[1772080739669,8.77117635,2076.8,2075.6,8.69181015]
[1772080741080,8.77117635,2076.8,2075.7,8.69181015]
[1772080742576,8.77117635,2076.8,2075.6,7.185]
[1772080743683,5.1163653,2076.7,2075.3,8.69716532]
[1772080743883,8.76526206,2076.6,2075.3,8.69716532]
[1772080744181,8.76526206,2076.4,2075.4,0.53435869]
[1772080744484,8.76526206,2076.4,2075.5,0.53435869]
[1772080744680,8.76526206,2076.4,2075.6,0.53435869]
[1772080744877,8.76526206,2076.4,2075.3,0.00535517]
[1772080745778,8.76526206,2076.3,2075.3,15.82816532]
[1772080745983,8.76526206,2076.3,2075.4,8.69181015]
[1772080748284,8.76526206,2076.5,2075.4,8.69181015]
[1772080750081,18.07326206,2076.7,2075.4,8.69181015]
[1772080750584,8.76526206,2076.6,2075.4,8.69181015]
[1772080750781,8.76526206,2076.6,2075.5,15.86781015]
[1772080751380,8.76526206,2076.6,2075.6,8.69181015]
[1772080752989,8.76526206,2076.6,2075.4,15.85881015]
[1772080753284,8.76526206,2076.6,2075.5,8.69181015]
[1772080756795,8.76526206,2076.6,2075.6,0.53009752]
[1772080756994,8.76526206,2076.6,2075.7,0.53009752]
[1772080757293,8.76526206,2076.6,2075.8,0.53009752]
[1772080757494,8.76526206,2076.6,2075.9,0.53009752]
[1772080757694,8.76526206,2076.6,2076.0,0.53009752]
[1772080757891,8.76526206,2076.6,2076.1,0.53009752]
[1772080758092,8.76526206,2076.6,2075.5,8.69181015]
[1772080758291,8.76526206,2076.6,2075.6,9.22199754]
[1772080758494,8.76526206,2076.6,2075.7,0.53018739]
[1772080758692,8.76526206,2076.6,2075.8,0.53018739]
[1772080758894,8.76526206,2076.6,2075.9,0.53018739]
[1772080759094,8.76526206,2076.6,2076.0,0.53018739]
[1772080759296,8.76526206,2076.6,2076.1,0.53018739]
[1772080759492,8.76526206,2076.6,2075.6,8.69181015]
[1772080763803,8.77117635,2076.8,2075.8,8.69181015]
[1772080764004,8.77117635,2076.8,2076.0,8.69181015]
[1772080764807,8.77117635,2076.8,2075.6,8.69181015]
[1772080766807,8.77117635,2076.8,2075.3,0.00535517]
[1772080766808,8.77117635,2076.8,2075.4,8.5045966]
[1772080767009,8.24203148,2076.3,2075.3,15.63295177]
[1772080767307,8.24203148,2076.2,2075.3,15.63295177]
[1772080771013,8.24203148,2076.2,2075.4,8.5045966]
[1772080774814,8.24203148,2076.2,2075.3,0.00535517]
[1772080775114,8.407019,2075.9,2075.3,0.00193823]
[1772080775311,8.407019,2075.7,2074.9,15.26802087]
[1772080776210,8.407019,2076.1,2075.0,8.15402087]
[1772080776616,8.407019,2076.1,2075.0,8.39497087]
[1772080777212,8.407019,2076.1,2075.0,10.14905663]
[1772080777514,8.407019,2076.4,2075.3,8.15402087]
[1772080777717,8.407019,2076.4,2075.5,8.15402087]
[1772080780322,8.407019,2076.4,2075.4,15.29102087]
[1772080780618,8.407019,2076.4,2075.5,8.15402087]
[1772080781520,8.407019,2076.4,2075.0,8.15402087]
[1772080781719,8.407019,2076.2,2075.2,8.15402087]
[1772080783326,8.407019,2076.2,2075.1,7.129]
[1772080783522,8.407019,2076.2,2075.0,3.95584002]
[1772080783725,8.407019,2076.2,2074.9,3.9614508]
[1772080784219,8.407019,2076.2,2074.9,12.11547167]
[1772080785027,8.407019,2075.9,2074.9,12.11547167]
[1772080785229,8.407019,2075.7,2074.9,12.11547167]
[1772080785728,8.407019,2075.7,2074.9,8.15963165]
[1772080786230,8.407019,2075.7,2075.0,8.15402087]
[1772080788737,10.16110476,2075.7,2074.6,8.15402087]
[1772080789032,8.407019,2075.7,2074.6,8.15402087]
[1772080789432,8.407019,2075.7,2074.7,8.15402087]
[1772080789626,8.407019,2075.7,2074.7,8.15819581]
[1772080791328,8.407019,2075.7,2074.8,8.15402087]
[1772080791533,8.407019,2075.9,2074.8,8.15402087]
[1772080792227,8.407019,2075.9,2074.9,14.0877809]
[1772080792434,8.407019,2076.3,2075.1,8.15402087]
[1772080794834,8.407019,2076.3,2075.3,8.14875273]
[1772080795034,8.407019,2076.3,2075.5,8.14875273]
[1772080795335,17.645019,2076.5,2075.5,8.14875273]
[1772080796129,8.407019,2076.5,2075.5,8.14875273]
[1772080796435,7.96461403,2076.7,2075.5,8.14875273]
[1772080797630,7.96461403,2076.7,2075.6,7.9395515]
[1772080798034,7.96461403,2076.7,2075.7,7.9395515]
[1772080798235,7.96461403,2076.7,2075.9,7.9395515]
[1772080798930,7.96461403,2076.7,2075.8,7.183]
[1772080799132,7.96461403,2076.7,2075.8,15.1225515]
[1772080800637,7.96461403,2076.7,2075.9,7.9395515]
[1772080801032,9.71869979,2076.7,2075.5,7.191]
[1772080801432,9.71869979,2076.7,2075.3,7.9395515]
[1772080801733,7.96461403,2076.3,2075.3,15.1315515]
[1772080801933,7.96461403,2076.2,2075.3,7.192]
[1772080805241,7.96461403,2076.2,2075.4,7.63567385]
[1772080806440,7.96461403,2076.4,2075.4,7.63567385]
[1772080810551,7.96461403,2076.6,2075.4,9.38975961]
[1772080811053,7.96461403,2076.6,2075.6,7.49098922]
[1772080812153,7.96461403,2076.6,2075.6,7.73186922]
[1772080813657,7.97052832,2076.8,2076.0,7.52908238]
[1772080813851,0.00591429,2076.8,2076.2,7.52908238]
[1772080814057,7.97052832,2076.8,2076.2,0.00520508]
[1772080814558,7.97052832,2076.8,2075.9,7.211]
[1772080814760,7.97052832,2076.8,2075.9,14.76056069]
[1772080815458,7.97052832,2076.8,2075.9,14.76592155]
[1772080815664,7.97052832,2076.8,2076.0,7.53100127]
[1772080817265,7.97052832,2076.8,2075.9,7.21636086]
[1772080819868,7.97052832,2076.8,2076.0,7.42470665]
[1772080821265,7.96461403,2077.3,2076.2,7.40532448]
[1772080821568,7.96461403,2077.3,2076.4,7.40622723]
[1772080821768,7.96461403,2077.3,2076.4,7.39583502]
[1772080822268,7.96883039,2077.3,2076.4,7.39583502]
[1772080822665,7.96461403,2077.7,2076.7,7.44258406]
[1772080822969,7.96461403,2077.7,2076.9,7.44258406]
[1772080823666,0.00457351,2077.7,2076.9,7.44258406]
[1772080825071,0.00457351,2077.7,2076.9,13.35698276]
[1772080825366,7.96461403,2078.0,2077.2,7.35297397]
[1772080825561,10.307,2078.6,2077.4,7.35297397]
[1772080825562,7.96461403,2078.2,2077.4,7.35297397]
[1772080826172,7.96901282,2078.2,2077.4,7.35679768]
[1772080828070,7.96901282,2078.2,2077.5,7.246]
[1772080828269,7.96901282,2078.2,2077.6,7.28555063]
[1772080828965,7.96901282,2078.2,2077.5,7.246]
[1772080831068,7.96901282,2078.2,2077.4,0.00382371]
[1772080831373,7.96901282,2078.2,2077.4,6.79117182]
[1772080833270,7.96901282,2078.2,2077.4,14.04417182]
[1772080833472,7.96901282,2078.2,2077.4,0.00382371]
[1772080833772,7.96901282,2078.2,2077.1,7.253]
[1772080833964,7.96901282,2078.2,2076.8,7.252]
[1772080834164,7.70155113,2078.0,2076.9,6.71706358]
[1772080834570,7.70155113,2078.0,2076.9,6.72196452]
[1772080834870,7.70155113,2078.0,2076.9,0.00490094]
[1772080837273,7.70155113,2078.0,2076.9,6.70616846]
[1772080838870,7.70155113,2078.0,2077.0,6.68403979]
[1772080839672,7.70155113,2078.1,2077.2,6.66650389]
[1772080839872,7.70155113,2078.1,2077.4,6.66650389]
[1772080842078,0.00439879,2078.2,2077.4,6.66650389]
[1772080842467,7.70155113,2078.5,2077.6,7.18200233]
[1772080842667,7.70155113,2078.5,2077.5,0.24066]
[1772080842668,7.70155113,2078.5,2077.8,7.16326274]
[1772080843577,7.70697309,2078.5,2077.8,7.16326274]
[1772080846570,0.00542196,2078.5,2077.8,7.16326274]
[1772080847281,7.70155113,2078.7,2077.8,7.16326274]
[1772080847578,7.70155113,2079.2,2078.2,6.99082802]
[1772080847880,7.70155113,2079.2,2078.4,6.99082802]
[1772080848281,7.70619778,2079.2,2078.4,6.99663475]
[1772080848980,7.70155113,2079.4,2078.6,6.99638278]
[1772080849182,7.70155113,2079.4,2078.8,6.99638278]
[1772080849784,7.70155113,2080.1,2079.1,7.63601007]
[1772080849977,7.70574704,2080.1,2079.3,7.63601007]
[1772080850377,7.70574704,2080.1,2079.3,7.292]
[1772080850678,7.70574704,2080.1,2079.3,14.92801007]
[1772080851078,7.70155113,2080.3,2079.4,7.63601007]
[1772080851580,7.70155113,2080.7,2079.5,7.63601007]
[1772080852172,7.70368551,2080.7,2079.7,7.63601007]
[1772080852377,7.70368551,2080.7,2079.9,7.63601007]
[1772080852580,7.70368551,2080.7,2079.9,7.63986655]
[1772080852780,0.00213438,2080.7,2079.9,7.63986655]
[1772080853884,7.70368551,2080.7,2079.9,7.63986655]
[1772080854085,7.70155113,2081.1,2079.9,7.63986655]
[1772080854279,7.70155113,2081.3,2080.1,7.63601007]
[1772080854483,7.70155113,2081.3,2080.3,7.63601007]
[1772080855777,7.70155113,2081.3,2080.4,7.299]
[1772080856382,7.70155113,2081.3,2080.3,7.63601007]
[1772080856383,7.70155113,2081.3,2080.3,7.298]
[1772080857384,7.70155113,2081.3,2080.1,7.53938856]
[1772080857582,7.48386077,2081.1,2079.9,0.00385648]
[1772080857780,7.48386077,2081.1,2079.9,7.54324504]
[1772080858191,7.48386077,2081.1,2079.9,0.00385648]
[1772080859385,7.48386077,2081.1,2079.9,7.54324504]
[1772080859891,7.48386077,2081.1,2079.9,0.00385648]
[1772080860486,7.48386077,2080.9,2079.5,7.53938856]
[1772080860689,7.48386077,2080.9,2079.4,7.295]
[1772080860887,7.48386077,2080.1,2078.7,7.53938856]
[1772080861193,7.48386077,2079.9,2078.7,7.53938856]
[1772080861492,7.48771726,2079.9,2078.7,7.54363149]
[1772080862193,0.00385649,2079.9,2078.9,7.53938856]
[1772080862485,7.48386077,2080.9,2079.1,7.53938856]
[1772080862791,7.48386077,2080.9,2079.3,7.53938856]
[1772080863991,7.48386077,2081.2,2079.9,7.77976856]
[1772080864292,7.48386077,2081.2,2080.1,7.53938856]
[1772080864492,7.48386077,2081.4,2080.1,7.53938856]
[1772080865993,7.48386077,2082.0,2080.9,7.53938856]
[1772080866294,7.48386077,2082.2,2081.2,6.1501]
[1772080866493,7.48386077,2082.4,2081.3,7.53938856]
[1772080866890,7.48386077,2082.4,2081.4,7.315]
[1772080867090,7.48386077,2082.4,2081.5,14.85438856]
[1772080867287,7.48386077,2082.4,2081.7,7.53938856]
[1772080867487,7.48386077,2082.6,2081.9,7.53938856]
[1772080867993,7.48386077,2082.6,2082.0,14.85938856]
[1772080868199,7.48386077,2083.0,2082.2,7.53938856]
[1772080868490,1.75378572,2084.0,2081.5,7.53938856]
[1772080868491,7.48386077,2083.5,2081.5,7.53938856]
[1772080868693,7.48386077,2083.3,2081.5,7.53938856]
[1772080868893,7.48386077,2083.3,2081.7,7.53938856]
[1772080869090,7.48386077,2083.1,2081.9,7.53938856]
[1772080870295,7.48386077,2083.1,2081.7,7.53938856]
[1772080870598,7.48386077,2083.1,2081.9,7.53938856]
[1772080870893,7.48386077,2083.1,2082.0,7.33]
[1772080871098,7.48386077,2083.1,2082.0,7.329]
[1772080871299,7.48386077,2083.1,2081.1,7.53938856]
[1772080871499,7.48386077,2083.1,2081.6,7.53938856]
[1772080871694,7.48386077,2083.1,2081.8,7.53938856]
[1772080871898,7.48386077,2083.1,2081.2,5.9098]
[1772080871899,7.48386077,2083.1,2082.0,7.53938856]
[1772080873295,1.75378572,2082.9,2081.4,7.53938856]
[1772080873495,7.48386077,2082.7,2081.4,7.53938856]
[1772080873796,7.48386077,2082.7,2081.0,0.24025]
[1772080873797,7.48386077,2082.5,2081.0,7.53938856]
[1772080874001,7.48386077,2082.5,2081.1,7.337]
[1772080874196,7.48386077,2082.3,2081.2,7.53938856]
[1772080875304,7.48386077,2082.1,2080.9,7.54481245]
[1772080875801,7.48386077,2081.9,2080.9,7.54481245]
[1772080876401,7.48386077,2082.1,2080.9,7.54481245]
[1772080876700,7.48386077,2082.7,2080.9,7.54481245]
[1772080877197,7.48386077,2082.7,2081.1,7.53938856]
[1772080877402,7.48386077,2082.7,2081.3,7.53938856]
[1772080877903,7.48386077,2082.7,2081.5,7.53938856]
[1772080879403,7.48386077,2082.7,2081.7,7.53938856]
[1772080879702,7.48386077,2082.7,2081.8,7.53938856]
[1772080880801,7.48386077,2082.7,2081.7,7.53938856]
[1772080882401,7.48386077,2083.2,2081.7,7.53938856]
[1772080885698,7.48386077,2083.2,2081.9,7.53938856]
[1772080885904,7.48386077,2083.2,2082.1,7.70356438]
[1772080886808,7.28402357,2083.0,2081.7,7.70356438]
[1772080887007,7.28402357,2083.0,2081.7,15.05256438]
[1772080887605,7.28402357,2083.0,2081.8,7.70356438]
[1772080889708,7.28402357,2083.2,2082.0,7.70356438]
[1772080889909,16.60302357,2083.4,2082.0,7.70356438]
[1772080890608,7.28402357,2083.3,2082.2,7.70356438]
[1772080893012,7.28402357,2083.3,2082.1,14.60104227]
[1772080893213,7.28402357,2083.3,2082.2,7.24904227]
[1772080893709,7.12557665,2083.1,2081.8,7.24904227]
[1772080894111,5.17624113,2083.0,2081.6,7.24904227]
[1772080894415,7.12557665,2082.7,2081.6,7.24904227]
[1772080894715,7.12557665,2082.5,2081.6,7.24904227]
[1772080895106,7.12557665,2082.1,2081.1,3.91576196]
[1772080895305,7.12557665,2082.1,2081.2,7.24904227]
[1772080895511,7.12557665,2082.1,2081.3,7.24904227]
[1772080896610,7.12557665,2082.5,2081.3,7.24904227]
[1772080897215,7.12557665,2082.4,2081.3,7.24904227]
[1772080898211,8.86984971,2082.4,2081.1,7.24904227]
[1772080898811,7.12557665,2082.0,2080.9,7.25446616]
[1772080899009,7.12557665,2081.9,2080.9,0.00542389]
[1772080899316,7.12557665,2081.7,2080.9,0.00542389]
[1772080901915,7.12557665,2081.7,2080.9,7.25446616]
[1772080905317,7.12557665,2081.9,2080.9,7.25446616]
[1772080906221,7.12557665,2082.1,2081.1,7.24904227]
[1772080906519,7.12557665,2082.4,2081.1,7.24904227]
[1772080908414,7.12557665,2082.4,2081.1,8.99331533]
[1772080908719,7.12557665,2082.4,2081.2,7.24904227]
[1772080911123,7.36567665,2082.4,2081.0,7.24904227]
[1772080911322,8.86984971,2082.1,2080.9,0.00542389]
[1772080911524,7.12557665,2081.9,2080.9,7.25446616]
[1772080914326,7.12557665,2081.9,2080.9,0.00542389]
[1772080917431,6.76891748,2081.7,2080.5,7.0788807]
[1772080917727,6.76891748,2081.6,2080.5,7.0788807]
[1772080917934,6.76891748,2081.4,2080.5,7.0788807]
[1772080918433,6.77330789,2081.4,2080.5,7.08307299]
[1772080919933,6.77330789,2081.4,2080.5,0.00419229]
[1772080920130,6.77330789,2081.4,2080.5,7.08307299]
[1772080923633,0.00439041,2081.4,2080.5,7.32338299]
[1772080923833,6.76891748,2082.0,2080.7,7.0788807]
[1772080924237,6.76891748,2082.0,2080.9,7.0788807]
[1772080924635,6.76891748,2082.0,2081.1,7.0788807]
[1772080924841,0.00103348,2082.0,2081.1,7.0788807]
[1772080925042,6.76995096,2082.0,2081.1,7.0788807]
[1772080926138,6.76995096,2082.0,2080.9,7.0788807]
[1772080926643,6.76995096,2082.0,2080.7,7.0788807]
[1772080926935,6.76891748,2081.8,2080.7,7.0788807]
[1772080927236,6.76891748,2081.8,2080.9,7.0788807]
[1772080927443,6.76891748,2081.8,2081.0,7.0788807]
[1772080927743,6.76995096,2082.0,2081.1,7.0788807]
[1772080930841,6.76995096,2082.0,2080.9,14.4048807]
[1772080931040,6.76891748,2081.9,2080.7,7.0788807]
[1772080931346,6.76891748,2081.9,2080.8,7.0788807]
[1772080936747,6.76891748,2081.9,2080.8,10.99742407]
[1772080936947,6.76891748,2081.9,2080.9,7.0788807]
[1772080939148,6.76891748,2081.9,2080.9,10.99742407]
[1772080939447,6.76891748,2081.9,2081.0,7.0788807]
[1772080947554,0.00103348,2082.0,2081.0,7.0788807]
[1772080947757,6.57006307,2082.3,2081.3,6.55124881]
[1772080948954,6.57006307,2082.3,2081.4,6.55124881]
[1772080956161,6.57006307,2082.3,2081.2,11.10507225]
[1772080956360,6.57006307,2082.3,2081.2,7.18652888]
[1772080956957,6.57006307,2082.3,2081.3,7.18652888]
[1772080958959,6.57006307,2082.3,2081.1,3.91854337]
[1772080959163,6.57006307,2082.3,2081.2,7.18652888]
[1772080959860,6.78680834,2082.2,2081.0,7.18652888]
[1772080968368,6.78680834,2081.9,2080.8,7.18652888]
[1772080968566,6.78680834,2081.7,2080.8,7.18652888]
[1772080968766,6.78680834,2081.7,2080.6,7.18652888]
[1772080969471,6.78680834,2081.5,2080.6,7.18652888]
[1772080969771,6.78680834,2081.3,2080.6,7.18652888]
[1772080974574,6.78680834,2081.3,2080.5,0.00419229]
[1772080974775,6.78680834,2081.3,2080.1,7.18652888]
[1772080975072,6.78680834,2081.1,2080.1,7.18652888]
[1772080975275,6.78680834,2080.9,2080.1,7.18652888]
[1772080975677,6.79100063,2080.9,2080.1,7.19068456]
[1772080977171,6.79100063,2080.9,2079.9,6.39633232]
[1772080977476,6.79100063,2080.9,2079.7,6.39633232]
[1772080978273,6.79100063,2080.9,2079.7,6.40085313]
[1772080980275,6.74390073,2080.7,2079.3,6.39633232]
[1772080980478,6.74390073,2080.5,2079.3,6.39633232]
[1772080980771,6.74390073,2080.3,2079.3,6.39633232]
[1772080980976,6.74390073,2080.1,2079.3,6.39633232]
[1772080981476,6.74390073,2080.1,2079.3,6.40230207]